Organisation Name,Organisation Code,Organisational Unit,Service Category Label,Procurement Category,Supplier Name,Supplier Other ID,Payment Date,Transaction Number,Amount (�),Purpose
Eden District Council,http://opendatacommunities.org/id/district-council/eden,Environmental Services,1996 Mandatory Renovation Grants,Capital grants,TOP NOTCH CONTRACTORS LTD,TOP003,04/06/2021,194822,1870,FIN PAYMENT GRANT REF 200063
Eden District Council,http://opendatacommunities.org/id/district-council/eden,Environmental Services,1996 Mandatory Renovation Grants,Capital grants,C W COX & SONS (KENDAL)  LTD,COX001,04/06/2021,194934,3940,FIN PAYMENT
Eden District Council,http://opendatacommunities.org/id/district-council/eden,Transformation & Customers Head of,Communications Services,Social Media,NLA MEDIA ACCESS LTD,NLA001,04/06/2021,195194,3018,RENEWAL LICENCE 28.5.21-27.5.22
Eden District Council,http://opendatacommunities.org/id/district-council/eden,Environmental Services,1996 Mandatory Renovation Grants,Capital grants,DOLPHIN MOBILITY YORKSHIRE & CUMBRIA LTD,DOL001,04/06/2021,195195,4290,INT PAYMENT GRANT REFG 200059
Eden District Council,http://opendatacommunities.org/id/district-council/eden,Commercial Services Manager,Tourism Promotion,Subscriptions & levies,SIMPLEVIEW EUROPE (NEW MIND INTERNET CONSULTANCY LTD),SIM021,04/06/2021,195233,1230,ANNUAL COSTS
Eden District Council,http://opendatacommunities.org/id/district-council/eden,Legal Services Manager,Land Management,Planned Maintenance,CUMBRIA WASTE RECYCLING LTD,CUM022,04/06/2021,193373,640,SKIP DROP APPLEBLY HERITAGE
Eden District Council,http://opendatacommunities.org/id/district-council/eden,Planning Policy Manager,Local Plans & Policy,Professional fees,TURLEY ASSOCIATES LTD,TUR018,04/06/2021,193514,1500,professional fees to31.04.21
Eden District Council,http://opendatacommunities.org/id/district-council/eden,Corporate Services Director,Director of Corporate Services,Agency Staff,CIPFA PENNA,CIP013,04/06/2021,193769,13200,INT MANAGEMENT APR21 PS
Eden District Council,http://opendatacommunities.org/id/district-council/eden,Environmental Services,1996 Mandatory Renovation Grants,Capital grants,CLOSOMAT LTD,TOT001,04/06/2021,194535,5064,INT PAYMENT GRANT REF 200041
Eden District Council,http://opendatacommunities.org/id/district-council/eden,Environmental Services,1996 Mandatory Renovation Grants,Capital grants,PPM LTD,PPM001,04/06/2021,194536,8957.31,FIN PAYMENT GRANT REF 200038
Eden District Council,http://opendatacommunities.org/id/district-council/eden,Technical Services Manager,Recycling,Garden Waste Skips,CUMBRIA WASTE RECYCLING LTD,CUM022,04/06/2021,194705,3640,SKIPS
Eden District Council,http://opendatacommunities.org/id/district-council/eden,Commercial Services Manager,Commercial Services,Agency Staff,REDACTED INFORMATION,BAL010,04/06/2021,194712,2465,TEAM SUPPORT MAY21
Eden District Council,http://opendatacommunities.org/id/district-council/eden,Information Technology Manager,Information Technology,Shared IT Services,SOUTH LAKELAND DISTRICT COUNCIL,SOU006,04/06/2021,193467,68703.95,IT SHARED SERVICES QTR4 20/21
Eden District Council,http://opendatacommunities.org/id/district-council/eden,Environmental Services,Housing Delivery,Community Housing Fund - Patterdale,PATTERDALE PARISH COMMUNITY LAND TRUST,PAT018,04/06/2021,193649,20250,COMMUNITY HOUSING GRANT
Eden District Council,http://opendatacommunities.org/id/district-council/eden,Revenue/Benefits Manager,Revenue & Benefits,Contribution by EDC,PENRITH INDUSTRIAL BID COMPANY LTD,PEN087,04/06/2021,194538,15000,MONIES COLLECTED
Eden District Council,http://opendatacommunities.org/id/district-council/eden,Technical Services Manager,Land Management,Building works,2030 ARCHITECTS,ARC011,04/06/2021,194539,6767.5,ADDITIONAL WORKS
Eden District Council,http://opendatacommunities.org/id/district-council/eden,Legal Services Manager,Committee and Member Costs,Software � maintenance,CIVICA UK LTD,CIV002,04/06/2021,194543,10653.34,MODERN.GOV LICENSES 1.7.21-30.6.22
Eden District Council,http://opendatacommunities.org/id/district-council/eden,Community Service Assistant Director,Holding Accounts,Postages,ROYAL MAIL NW,ROY001,04/06/2021,194715,1243.39,1ST &2ND CLASS MAIL
Eden District Council,http://opendatacommunities.org/id/district-council/eden,Legal Services Manager,Elections,Printing and stationary,PRINT IMAGE NETWORK LTD,PRI011,04/06/2021,194717,1176,EDEN BY ELECTION BALLOT BOOKS
Eden District Council,http://opendatacommunities.org/id/district-council/eden,Legal Services Manager,Legal Services,Agency Staff,VENN GROUP LIMITED,VEN003,04/06/2021,194718,639.91,W/E 16.5.21  TIME SHEET
Eden District Council,http://opendatacommunities.org/id/district-council/eden,Legal Services Manager,Elections,Postal Voting - Printing & Stationery,PRINT IMAGE NETWORK LTD,PRI011,04/06/2021,194720,1060.8,EDEN PCC CNLS 2021
Eden District Council,http://opendatacommunities.org/id/district-council/eden,Financial Services Manager,Financial Services,Internal Audit,TIAA LTD,TIA001,04/06/2021,194721,975,21/22 FOLLOW - UP Q1
Eden District Council,http://opendatacommunities.org/id/district-council/eden,Planning Services,Development Control & Enforcement,Professional fees,SUMMIT TOWN PLANNING LTD,SUM004,04/06/2021,194727,902.15,planning app determination
Eden District Council,http://opendatacommunities.org/id/district-council/eden,Environmental Services,Housing Delivery,Professional fees,SOUTH LAKELAND DISTRICT COUNCIL,SOU006,04/06/2021,194728,2844.99,CUMBRIA CHOICE 2021-22
Eden District Council,http://opendatacommunities.org/id/district-council/eden,Revenue/Benefits Manager,Revenue & Benefits,Unique payments ****,REDACTED INFORMATION,BUT016,04/06/2021,194823,3368.31,COUNCIL TAX REDUCTION REFUND
Eden District Council,http://opendatacommunities.org/id/district-council/eden,Chief Executive's,Land Management,Professional fees,CARLISLE CITY COUNCIL,CAR015,04/06/2021,194824,6000,FINANCIAL SUPPORT CUMBRIA ONE 2021/22
Eden District Council,http://opendatacommunities.org/id/district-council/eden,Technical Services Manager,Public Conveniences,Devolution Grant,BARTON PARISH COUNCIL,BAR001,04/06/2021,194935,5735,1 yr transfer asset grant pooley bridge
Eden District Council,http://opendatacommunities.org/id/district-council/eden,Chief Executive's,Chief Executive,Agency Staff,CARLISLE CITY COUNCIL,CAR015,04/06/2021,195196,5000,SHARED CEO APR 21
Eden District Council,http://opendatacommunities.org/id/district-council/eden,Technical Services Manager,Closed Church Yards,GM INSPECTIONS & MAINTENANCE,AMEY PLC,TFE001,04/06/2021,195203,16128.31,CERT M-GM 107
Eden District Council,http://opendatacommunities.org/id/district-council/eden,Planning Services,Environmental Enhancement & Conservation,Professional fees,CAPITA PROPERTY & INFRASTRUCTURE LTD,CAP002,04/06/2021,195207,2621.68,arboricultural services feb21
Eden District Council,http://opendatacommunities.org/id/district-council/eden,Planning Services,Environmental Enhancement & Conservation,Professional fees,CAPITA PROPERTY & INFRASTRUCTURE LTD,CAP002,04/06/2021,195209,3277.1,arboricultural services mar21
Eden District Council,http://opendatacommunities.org/id/district-council/eden,Planning Services,Environmental Enhancement & Conservation,Professional fees,CAPITA PROPERTY & INFRASTRUCTURE LTD,CAP002,04/06/2021,195210,2293.97,arboricultural services apr21
Eden District Council,http://opendatacommunities.org/id/district-council/eden,Planning Services,Environmental Enhancement & Conservation,Professional fees,CAPITA PROPERTY & INFRASTRUCTURE LTD,CAP002,04/06/2021,195211,2621.68,arboricultural services dec20
Eden District Council,http://opendatacommunities.org/id/district-council/eden,Planning Services,Environmental Enhancement & Conservation,Professional fees,CAPITA PROPERTY & INFRASTRUCTURE LTD,CAP002,04/06/2021,195212,2621.68,arboricultural services jan21
Eden District Council,http://opendatacommunities.org/id/district-council/eden,Technical Services Manager,Arts and Leisure,Grants and contributions,ASKHAM SWIMMING POOL,ASK009,04/06/2021,195234,1507,RURAL POOLS GRANT PAYMENT
Eden District Council,http://opendatacommunities.org/id/district-council/eden,Technical Services Manager,Arts and Leisure,Grants and contributions,GREYSTOKE & DISTRICT SPORTS ASSOCIATION,GRE020,04/06/2021,195235,1559,RURAL POOLS GRANT PAYMENT
Eden District Council,http://opendatacommunities.org/id/district-council/eden,Technical Services Manager,Arts and Leisure,Grants and contributions,HUNSONBY SWIMMING CLUB,HUN017,04/06/2021,195236,1125,RURAL POOLS GRANT PAYMENT
Eden District Council,http://opendatacommunities.org/id/district-council/eden,Technical Services Manager,Arts and Leisure,Grants and contributions,LAZONBY SWIMMING POOL ASSOCIATION,LAZ003,04/06/2021,195237,1507,RURAL POOLS GRANT PAYMENT
Eden District Council,http://opendatacommunities.org/id/district-council/eden,Technical Services Manager,Arts and Leisure,Grants and contributions,SHAP SWIMMING POOL,SHA011,04/06/2021,195238,1983,RURAL POOLS GRANT PAYMENT
Eden District Council,http://opendatacommunities.org/id/district-council/eden,Technical Services Manager,Public Conveniences,Devolution Grant,DUFTON PARISH COUNCIL,DUF001,04/06/2021,194936,5292,1 yr transfer asset grant dufton pcs
Eden District Council,http://opendatacommunities.org/id/district-council/eden,Financial Services Manager,Emergency Planning and Works,Grants and contributions,The Beauty Rooms,40244815,02/06/2021,195884,8000,COVID 19 SMALL BUSINESS GRANT
Eden District Council,http://opendatacommunities.org/id/district-council/eden,Financial Services Manager,Emergency Planning and Works,Grants and contributions,THE RATE PAYER,40192006,02/06/2021,195885,8000,COVID 19 SMALL BUSINESS GRANT
Eden District Council,http://opendatacommunities.org/id/district-council/eden,Financial Services Manager,Emergency Planning and Works,Grants and contributions,The Outfitters Cafe Bar,40246415,02/06/2021,195886,8000,COVID 19 SMALL BUSINESS GRANT
Eden District Council,http://opendatacommunities.org/id/district-council/eden,Financial Services Manager,Emergency Planning and Works,Grants and contributions,Gate Cottage,40235453,02/06/2021,195887,8000,COVID 19 SMALL BUSINESS GRANT
Eden District Council,http://opendatacommunities.org/id/district-council/eden,Financial Services Manager,Emergency Planning and Works,Grants and contributions,Graham Holdings & Co Ltd,40249834,02/06/2021,195888,12000,COVID 19 SMALL BUSINESS GRANT
Eden District Council,http://opendatacommunities.org/id/district-council/eden,Financial Services Manager,Emergency Planning and Works,Grants and contributions,SAMMY LEES MOTORS,40245955,02/06/2021,195889,2667,COVID 19 SMALL BUSINESS GRANT
Eden District Council,http://opendatacommunities.org/id/district-council/eden,Financial Services Manager,Emergency Planning and Works,Grants and contributions,THE RATE PAYER,40229519,02/06/2021,195890,8000,COVID 19 SMALL BUSINESS GRANT
Eden District Council,http://opendatacommunities.org/id/district-council/eden,Financial Services Manager,Emergency Planning and Works,Grants and contributions,THE RATE PAYER,40229267,02/06/2021,195891,8000,COVID 19 SMALL BUSINESS GRANT
Eden District Council,http://opendatacommunities.org/id/district-council/eden,Financial Services Manager,Emergency Planning and Works,Grants and contributions,THE RATE PAYER,40156390,02/06/2021,195892,8000,COVID 19 SMALL BUSINESS GRANT
Eden District Council,http://opendatacommunities.org/id/district-council/eden,Financial Services Manager,Emergency Planning and Works,Grants and contributions,THE RATE PAYER,40240745,02/06/2021,195893,8000,COVID 19 SMALL BUSINESS GRANT
Eden District Council,http://opendatacommunities.org/id/district-council/eden,Financial Services Manager,Emergency Planning and Works,Grants and contributions,The Strickland Arms,40165363,02/06/2021,195894,8000,COVID 19 SMALL BUSINESS GRANT
Eden District Council,http://opendatacommunities.org/id/district-council/eden,Financial Services Manager,Emergency Planning and Works,Grants and contributions,Sykeside Bunk House,40225982,02/06/2021,195895,8000,COVID 19 SMALL BUSINESS GRANT
Eden District Council,http://opendatacommunities.org/id/district-council/eden,Financial Services Manager,Emergency Planning and Works,Grants and contributions,THE RATE PAYER,40246880,02/06/2021,195896,8000,COVID 19 SMALL BUSINESS GRANT
Eden District Council,http://opendatacommunities.org/id/district-council/eden,Financial Services Manager,Emergency Planning and Works,Grants and contributions,Orchard Cottage,40230816,02/06/2021,195897,8000,COVID 19 SMALL BUSINESS GRANT
Eden District Council,http://opendatacommunities.org/id/district-council/eden,Financial Services Manager,Emergency Planning and Works,Grants and contributions,BROOKLANDS,40131483,02/06/2021,195898,8000,COVID 19 SMALL BUSINESS GRANT
Eden District Council,http://opendatacommunities.org/id/district-council/eden,Financial Services Manager,Emergency Planning and Works,Grants and contributions,THE RATE PAYER,40251950,02/06/2021,195899,8000,COVID 19 SMALL BUSINESS GRANT
Eden District Council,http://opendatacommunities.org/id/district-council/eden,Financial Services Manager,Emergency Planning and Works,Grants and contributions,THE RATE PAYER,40251141,02/06/2021,195900,8000,COVID 19 SMALL BUSINESS GRANT
Eden District Council,http://opendatacommunities.org/id/district-council/eden,Financial Services Manager,Emergency Planning and Works,Grants and contributions,THE RATE PAYER,40246897,02/06/2021,195901,8000,COVID 19 SMALL BUSINESS GRANT
Eden District Council,http://opendatacommunities.org/id/district-council/eden,Financial Services Manager,Emergency Planning and Works,Grants and contributions,THE RATE PAYER,40250568,02/06/2021,195902,8000,COVID 19 SMALL BUSINESS GRANT
Eden District Council,http://opendatacommunities.org/id/district-council/eden,Financial Services Manager,Emergency Planning and Works,Grants and contributions,THE RATE PAYER,40239745,02/06/2021,195903,8000,COVID 19 SMALL BUSINESS GRANT
Eden District Council,http://opendatacommunities.org/id/district-council/eden,Financial Services Manager,Emergency Planning and Works,Grants and contributions,THE RATE PAYER,40185145,02/06/2021,195904,2667,COVID 19 SMALL BUSINESS GRANT
Eden District Council,http://opendatacommunities.org/id/district-council/eden,Financial Services Manager,Emergency Planning and Works,Grants and contributions,  MURRAY ELECTRICAL,40155670,02/06/2021,195905,2667,COVID 19 SMALL BUSINESS GRANT
Eden District Council,http://opendatacommunities.org/id/district-council/eden,Financial Services Manager,Emergency Planning and Works,Grants and contributions,THE RATE PAYER,40250780,02/06/2021,195906,8000,COVID 19 SMALL BUSINESS GRANT
Eden District Council,http://opendatacommunities.org/id/district-council/eden,Financial Services Manager,Emergency Planning and Works,Grants and contributions,FLASKA HOUSE & ERICAS' COTTAGE,40226169,02/06/2021,195907,8000,COVID 19 SMALL BUSINESS GRANT
Eden District Council,http://opendatacommunities.org/id/district-council/eden,Financial Services Manager,Emergency Planning and Works,Grants and contributions,Hospice at Home Carlisle and North Lakeland,40159153,02/06/2021,195908,2667,COVID 19 SMALL BUSINESS GRANT
Eden District Council,http://opendatacommunities.org/id/district-council/eden,Financial Services Manager,Emergency Planning and Works,Grants and contributions,THE RATE PAYER,40211792,02/06/2021,195909,8000,COVID 19 SMALL BUSINESS GRANT
Eden District Council,http://opendatacommunities.org/id/district-council/eden,Financial Services Manager,Emergency Planning and Works,Grants and contributions,Appleby Girl Guide Assoc,40113294,02/06/2021,195910,8000,COVID 19 SMALL BUSINESS GRANT
Eden District Council,http://opendatacommunities.org/id/district-council/eden,Financial Services Manager,Emergency Planning and Works,Grants and contributions,THE RATE PAYER,40037598,02/06/2021,195911,8000,COVID 19 SMALL BUSINESS GRANT
Eden District Council,http://opendatacommunities.org/id/district-council/eden,Financial Services Manager,Emergency Planning and Works,Grants and contributions,Appleby Castle Limited,40221553,02/06/2021,195912,8000,COVID 19 SMALL BUSINESS GRANT
Eden District Council,http://opendatacommunities.org/id/district-council/eden,Financial Services Manager,Emergency Planning and Works,Grants and contributions,THE RATE PAYER,40244914,02/06/2021,195913,8000,COVID 19 SMALL BUSINESS GRANT
Eden District Council,http://opendatacommunities.org/id/district-council/eden,Financial Services Manager,Emergency Planning and Works,Grants and contributions,Cockley Moor Cottage,40215367,02/06/2021,195914,8000,COVID 19 SMALL BUSINESS GRANT
Eden District Council,http://opendatacommunities.org/id/district-council/eden,Financial Services Manager,Emergency Planning and Works,Grants and contributions,THE RATE PAYER,40204251,02/06/2021,195915,8000,COVID 19 SMALL BUSINESS GRANT
Eden District Council,http://opendatacommunities.org/id/district-council/eden,Financial Services Manager,Emergency Planning and Works,Grants and contributions,THE RATE PAYER,40246033,02/06/2021,195916,2667,COVID 19 SMALL BUSINESS GRANT
Eden District Council,http://opendatacommunities.org/id/district-council/eden,Financial Services Manager,Emergency Planning and Works,Grants and contributions,Holiday Cottage The Gars,40172194,02/06/2021,195917,8000,COVID 19 SMALL BUSINESS GRANT
Eden District Council,http://opendatacommunities.org/id/district-council/eden,Financial Services Manager,Emergency Planning and Works,Grants and contributions,THE RATE PAYER,40244921,02/06/2021,195918,12000,COVID 19 SMALL BUSINESS GRANT
Eden District Council,http://opendatacommunities.org/id/district-council/eden,Financial Services Manager,Emergency Planning and Works,Grants and contributions,THE RATE PAYER,40212931,02/06/2021,195919,8000,COVID 19 SMALL BUSINESS GRANT
Eden District Council,http://opendatacommunities.org/id/district-council/eden,Financial Services Manager,Emergency Planning and Works,Grants and contributions,THE RATE PAYER,40228653,02/06/2021,195920,2667,COVID 19 SMALL BUSINESS GRANT
Eden District Council,http://opendatacommunities.org/id/district-council/eden,Financial Services Manager,Emergency Planning and Works,Grants and contributions,Base Camp Outdoors,40241915,02/06/2021,195921,2667,COVID 19 SMALL BUSINESS GRANT
Eden District Council,http://opendatacommunities.org/id/district-council/eden,Financial Services Manager,Emergency Planning and Works,Grants and contributions,HUTTONS CAR SALES LTD,40200457,02/06/2021,195922,4000,COVID 19 SMALL BUSINESS GRANT
Eden District Council,http://opendatacommunities.org/id/district-council/eden,Financial Services Manager,Emergency Planning and Works,Grants and contributions,Melmerby Hall,40139876,02/06/2021,195923,8000,COVID 19 SMALL BUSINESS GRANT
Eden District Council,http://opendatacommunities.org/id/district-council/eden,Financial Services Manager,Emergency Planning and Works,Grants and contributions,Glassonby Cottages,40211419,02/06/2021,195924,8000,COVID 19 SMALL BUSINESS GRANT
Eden District Council,http://opendatacommunities.org/id/district-council/eden,Financial Services Manager,Emergency Planning and Works,Grants and contributions,Birtle�s Sports,40178543,02/06/2021,195925,2667,COVID 19 SMALL BUSINESS GRANT
Eden District Council,http://opendatacommunities.org/id/district-council/eden,Financial Services Manager,Emergency Planning and Works,Grants and contributions,THE SALON,40227469,02/06/2021,195926,8000,COVID 19 SMALL BUSINESS GRANT
Eden District Council,http://opendatacommunities.org/id/district-council/eden,Financial Services Manager,Emergency Planning and Works,Grants and contributions,Croglin Village Hall Committee,40054135,02/06/2021,195927,8000,COVID 19 SMALL BUSINESS GRANT
Eden District Council,http://opendatacommunities.org/id/district-council/eden,Financial Services Manager,Emergency Planning and Works,Grants and contributions,Stable Cottage,40168751,02/06/2021,195928,8000,COVID 19 SMALL BUSINESS GRANT
Eden District Council,http://opendatacommunities.org/id/district-council/eden,Financial Services Manager,Emergency Planning and Works,Grants and contributions,Lakeland Music,40234023,02/06/2021,195929,2667,COVID 19 SMALL BUSINESS GRANT
Eden District Council,http://opendatacommunities.org/id/district-council/eden,Financial Services Manager,Emergency Planning and Works,Grants and contributions,Gill Head Farm caravan site,40037369,02/06/2021,195930,12000,COVID 19 SMALL BUSINESS GRANT
Eden District Council,http://opendatacommunities.org/id/district-council/eden,Financial Services Manager,Emergency Planning and Works,Grants and contributions,Eden Outdoors,40146805,02/06/2021,195931,2667,COVID 19 SMALL BUSINESS GRANT
Eden District Council,http://opendatacommunities.org/id/district-council/eden,Financial Services Manager,Emergency Planning and Works,Grants and contributions,Silver Sweets,40194637,02/06/2021,195932,2667,COVID 19 SMALL BUSINESS GRANT
Eden District Council,http://opendatacommunities.org/id/district-council/eden,Financial Services Manager,Emergency Planning and Works,Grants and contributions,Knipe Hall Ltd,40231673,02/06/2021,195933,8000,COVID 19 SMALL BUSINESS GRANT
Eden District Council,http://opendatacommunities.org/id/district-council/eden,Financial Services Manager,Emergency Planning and Works,Grants and contributions, Hi-Pennine Outdoor Shop,40211129,02/06/2021,195934,2667,COVID 19 SMALL BUSINESS GRANT
Eden District Council,http://opendatacommunities.org/id/district-council/eden,Financial Services Manager,Emergency Planning and Works,Grants and contributions,Yew Tree Farm,40162326,02/06/2021,195935,8000,COVID 19 SMALL BUSINESS GRANT
Eden District Council,http://opendatacommunities.org/id/district-council/eden,Financial Services Manager,Emergency Planning and Works,Grants and contributions,THE RATE PAYER,40248817,02/06/2021,195936,8000,COVID 19 SMALL BUSINESS GRANT
Eden District Council,http://opendatacommunities.org/id/district-council/eden,Financial Services Manager,Emergency Planning and Works,Grants and contributions,THE RATE PAYER,40231857,02/06/2021,195937,2667,COVID 19 SMALL BUSINESS GRANT
Eden District Council,http://opendatacommunities.org/id/district-council/eden,Financial Services Manager,Emergency Planning and Works,Grants and contributions,MARVINS (PENRITH) LIMITED,40053095,02/06/2021,195938,2667,COVID 19 SMALL BUSINESS GRANT
Eden District Council,http://opendatacommunities.org/id/district-council/eden,Financial Services Manager,Emergency Planning and Works,Grants and contributions,THE RATE PAYER,40250155,02/06/2021,195939,8000,COVID 19 SMALL BUSINESS GRANT
Eden District Council,http://opendatacommunities.org/id/district-council/eden,Financial Services Manager,Emergency Planning and Works,Grants and contributions,Kings Arms Hotel,40234252,02/06/2021,195940,8000,COVID 19 SMALL BUSINESS GRANT
Eden District Council,http://opendatacommunities.org/id/district-council/eden,Financial Services Manager,Emergency Planning and Works,Grants and contributions,THE RATE PAYER,40244006,04/06/2021,195967,8000,COVID 19 SMALL BUSINESS GRANT
Eden District Council,http://opendatacommunities.org/id/district-council/eden,Financial Services Manager,Emergency Planning and Works,Grants and contributions,THE RATE PAYER,40251196,04/06/2021,195968,8000,COVID 19 SMALL BUSINESS GRANT
Eden District Council,http://opendatacommunities.org/id/district-council/eden,Financial Services Manager,Emergency Planning and Works,Grants and contributions,Lowbyer Manor Hotel,40220666,04/06/2021,195969,8000,COVID 19 SMALL BUSINESS GRANT
Eden District Council,http://opendatacommunities.org/id/district-council/eden,Financial Services Manager,Emergency Planning and Works,Grants and contributions,Acorn Guest House,40230199,04/06/2021,195970,8000,COVID 19 SMALL BUSINESS GRANT
Eden District Council,http://opendatacommunities.org/id/district-council/eden,Financial Services Manager,Emergency Planning and Works,Grants and contributions,KJM Leisure Limited,40250841,04/06/2021,195971,8000,COVID 19 SMALL BUSINESS GRANT
Eden District Council,http://opendatacommunities.org/id/district-council/eden,Financial Services Manager,Emergency Planning and Works,Grants and contributions, Pamelas hair design,40220024,04/06/2021,195972,8000,COVID 19 SMALL BUSINESS GRANT
Eden District Council,http://opendatacommunities.org/id/district-council/eden,Financial Services Manager,Emergency Planning and Works,Grants and contributions,Calico Club Greenacres,40226220,04/06/2021,195973,2667,COVID 19 SMALL BUSINESS GRANT
Eden District Council,http://opendatacommunities.org/id/district-council/eden,Financial Services Manager,Emergency Planning and Works,Grants and contributions,Lazonby & District Swimming Pool Association Ltd,40050492,04/06/2021,195974,8000,COVID 19 SMALL BUSINESS GRANT
Eden District Council,http://opendatacommunities.org/id/district-council/eden,Financial Services Manager,Emergency Planning and Works,Grants and contributions,Alston Moor Fitness Club LTD,40192433,04/06/2021,195975,8000,COVID 19 SMALL BUSINESS GRANT
Eden District Council,http://opendatacommunities.org/id/district-council/eden,Financial Services Manager,Emergency Planning and Works,Grants and contributions,Black Swan,40163923,04/06/2021,195976,18000,COVID 19 SMALL BUSINESS GRANT
Eden District Council,http://opendatacommunities.org/id/district-council/eden,Financial Services Manager,Emergency Planning and Works,Grants and contributions,Heart and Soul,40206806,04/06/2021,195977,8000,COVID 19 SMALL BUSINESS GRANT
Eden District Council,http://opendatacommunities.org/id/district-council/eden,Financial Services Manager,Emergency Planning and Works,Grants and contributions,THE RATE PAYER,40229038,04/06/2021,195978,2667,COVID 19 SMALL BUSINESS GRANT
Eden District Council,http://opendatacommunities.org/id/district-council/eden,Financial Services Manager,Emergency Planning and Works,Grants and contributions,The National Trust,40252472,04/06/2021,195979,8000,COVID 19 SMALL BUSINESS GRANT
Eden District Council,http://opendatacommunities.org/id/district-council/eden,Financial Services Manager,Emergency Planning and Works,Grants and contributions,Penrith Parish Centre Limited,40037437,04/06/2021,195980,8000,COVID 19 SMALL BUSINESS GRANT
Eden District Council,http://opendatacommunities.org/id/district-council/eden,Financial Services Manager,Emergency Planning and Works,Grants and contributions,Live Well Beauty Ltd,40247869,04/06/2021,195981,8000,COVID 19 SMALL BUSINESS GRANT
Eden District Council,http://opendatacommunities.org/id/district-council/eden,Financial Services Manager,Emergency Planning and Works,Grants and contributions,Caravan Club Ltd,40119223,04/06/2021,195982,18000,COVID 19 SMALL BUSINESS GRANT
Eden District Council,http://opendatacommunities.org/id/district-council/eden,Financial Services Manager,Emergency Planning and Works,Grants and contributions,Benetton,40134178,04/06/2021,195983,2667,COVID 19 SMALL BUSINESS GRANT
Eden District Council,http://opendatacommunities.org/id/district-council/eden,Financial Services Manager,Emergency Planning and Works,Grants and contributions,Harvey hair studio,40228974,04/06/2021,195984,8000,COVID 19 SMALL BUSINESS GRANT
Eden District Council,http://opendatacommunities.org/id/district-council/eden,Financial Services Manager,Emergency Planning and Works,Grants and contributions,Granny Dowbekins Ltd,40236500,04/06/2021,195985,8000,COVID 19 SMALL BUSINESS GRANT
Eden District Council,http://opendatacommunities.org/id/district-council/eden,Financial Services Manager,Emergency Planning and Works,Grants and contributions,THE RATE PAYER,40226367,04/06/2021,195986,8000,COVID 19 SMALL BUSINESS GRANT
Eden District Council,http://opendatacommunities.org/id/district-council/eden,Financial Services Manager,Emergency Planning and Works,Grants and contributions,Red Squirrel Hospitality Ltd,40248602,04/06/2021,195987,12000,COVID 19 SMALL BUSINESS GRANT
Eden District Council,http://opendatacommunities.org/id/district-council/eden,Financial Services Manager,Emergency Planning and Works,Grants and contributions,THE RATE PAYER,40168157,04/06/2021,195988,8000,COVID 19 SMALL BUSINESS GRANT
Eden District Council,http://opendatacommunities.org/id/district-council/eden,Financial Services Manager,Emergency Planning and Works,Grants and contributions,Chapel Farm Caravan Park,40248367,04/06/2021,195989,8000,COVID 19 SMALL BUSINESS GRANT
Eden District Council,http://opendatacommunities.org/id/district-council/eden,Financial Services Manager,Emergency Planning and Works,Grants and contributions,THE RATE PAYER,40252069,04/06/2021,195990,8000,COVID 19 SMALL BUSINESS GRANT
Eden District Council,http://opendatacommunities.org/id/district-council/eden,Financial Services Manager,Emergency Planning and Works,Grants and contributions,Fell Bars Ltd,40242680,04/06/2021,195991,8000,COVID 19 SMALL BUSINESS GRANT
Eden District Council,http://opendatacommunities.org/id/district-council/eden,Financial Services Manager,Emergency Planning and Works,Grants and contributions, NORTH LAKES GYMNASTICS,40247258,04/06/2021,195992,12000,COVID 19 SMALL BUSINESS GRANT
Eden District Council,http://opendatacommunities.org/id/district-council/eden,Financial Services Manager,Emergency Planning and Works,Grants and contributions,Beck Cottage,40249889,04/06/2021,195993,8000,COVID 19 SMALL BUSINESS GRANT
Eden District Council,http://opendatacommunities.org/id/district-council/eden,Financial Services Manager,Emergency Planning and Works,Grants and contributions, THEGREEN CUMBRIA,40252526,04/06/2021,195994,8000,COVID 19 SMALL BUSINESS GRANT
Eden District Council,http://opendatacommunities.org/id/district-council/eden,Financial Services Manager,Emergency Planning and Works,Grants and contributions,THE OLD PARLOUR,40179058,04/06/2021,195995,2667,COVID 19 SMALL BUSINESS GRANT
Eden District Council,http://opendatacommunities.org/id/district-council/eden,Financial Services Manager,Emergency Planning and Works,Grants and contributions,Murray Lettings Limited,40247654,04/06/2021,195996,8000,COVID 19 SMALL BUSINESS GRANT
Eden District Council,http://opendatacommunities.org/id/district-council/eden,Financial Services Manager,Emergency Planning and Works,Grants and contributions,HAYTON PROPERTIES LTD,40221263,04/06/2021,195997,8000,COVID 19 SMALL BUSINESS GRANT
Eden District Council,http://opendatacommunities.org/id/district-council/eden,Financial Services Manager,Emergency Planning and Works,Grants and contributions,Stone Cottage,40165530,04/06/2021,195998,8000,COVID 19 SMALL BUSINESS GRANT
Eden District Council,http://opendatacommunities.org/id/district-council/eden,Financial Services Manager,Emergency Planning and Works,Grants and contributions,Hart Barn,40232379,04/06/2021,195999,8000,COVID 19 SMALL BUSINESS GRANT
Eden District Council,http://opendatacommunities.org/id/district-council/eden,Financial Services Manager,Emergency Planning and Works,Grants and contributions,THE RATE PAYER,40251585,04/06/2021,196000,2667,COVID 19 SMALL BUSINESS GRANT
Eden District Council,http://opendatacommunities.org/id/district-council/eden,Financial Services Manager,Emergency Planning and Works,Grants and contributions,LOWTHER HOLIDAY PARK LTD,40040723,04/06/2021,196001,18000,COVID 19 SMALL BUSINESS GRANT
Eden District Council,http://opendatacommunities.org/id/district-council/eden,Financial Services Manager,Emergency Planning and Works,Grants and contributions,NENTHEAD MINES CONSERVATION SOCIETY,40251509,04/06/2021,196002,8000,COVID 19 SMALL BUSINESS GRANT
Eden District Council,http://opendatacommunities.org/id/district-council/eden,Financial Services Manager,Emergency Planning and Works,Grants and contributions,THE RATE PAYER,40099404,04/06/2021,196003,8000,COVID 19 SMALL BUSINESS GRANT
Eden District Council,http://opendatacommunities.org/id/district-council/eden,Financial Services Manager,Emergency Planning and Works,Grants and contributions,THE RATE PAYER,40202934,04/06/2021,196004,2667,COVID 19 SMALL BUSINESS GRANT
Eden District Council,http://opendatacommunities.org/id/district-council/eden,Financial Services Manager,Emergency Planning and Works,Grants and contributions,Westmorland Hotel,40048802,04/06/2021,196005,18000,COVID 19 SMALL BUSINESS GRANT
Eden District Council,http://opendatacommunities.org/id/district-council/eden,Financial Services Manager,Emergency Planning and Works,Grants and contributions,Melmerby Estates Limited,40219093,04/06/2021,196006,8000,COVID 19 SMALL BUSINESS GRANT
Eden District Council,http://opendatacommunities.org/id/district-council/eden,Financial Services Manager,Emergency Planning and Works,Grants and contributions,Lowther Cottage,40252786,04/06/2021,196007,8000,COVID 19 SMALL BUSINESS GRANT
Eden District Council,http://opendatacommunities.org/id/district-council/eden,Financial Services Manager,Emergency Planning and Works,Grants and contributions,Old St Johns Church,40249087,04/06/2021,196008,8000,COVID 19 SMALL BUSINESS GRANT
Eden District Council,http://opendatacommunities.org/id/district-council/eden,Financial Services Manager,Emergency Planning and Works,Grants and contributions,Harrison Leisure UK Ltd,40167949,04/06/2021,196009,18000,COVID 19 SMALL BUSINESS GRANT
Eden District Council,http://opendatacommunities.org/id/district-council/eden,Financial Services Manager,Emergency Planning and Works,Grants and contributions,Hesket Antiques & Curios,40249230,04/06/2021,196010,2667,COVID 19 SMALL BUSINESS GRANT
Eden District Council,http://opendatacommunities.org/id/district-council/eden,Financial Services Manager,Emergency Planning and Works,Grants and contributions,The Eden Valley Artistic Network CIC,40252403,04/06/2021,196011,2667,COVID 19 SMALL BUSINESS GRANT
Eden District Council,http://opendatacommunities.org/id/district-council/eden,Financial Services Manager,Emergency Planning and Works,Grants and contributions,Todd Hills Hall Farm,40238926,04/06/2021,196012,8000,COVID 19 SMALL BUSINESS GRANT
Eden District Council,http://opendatacommunities.org/id/district-council/eden,Financial Services Manager,Emergency Planning and Works,Grants and contributions,Jenny's Croft & Elk Cottage,40211426,04/06/2021,196013,8000,COVID 19 SMALL BUSINESS GRANT
Eden District Council,http://opendatacommunities.org/id/district-council/eden,Legal Services Manager,Land Management,Building Maintenance,IAN CANNON LTD,CAN004,11/06/2021,194788,560,CLEAN PND OUTLETS GILWILLY
Eden District Council,http://opendatacommunities.org/id/district-council/eden,Legal Services Manager,Land Management,Land Management Contract,WALTON GOODLAND LTD,WAL008,11/06/2021,195226,500,CASTLEGATE PROPERTIES
Eden District Council,http://opendatacommunities.org/id/district-council/eden,Planning Policy Manager,Local Plans & Policy,Professional fees,TAMESIDE METROPOLITAN BOROUGH,TAM001,11/06/2021,195832,1100,HRA SCREENING REPORT
Eden District Council,http://opendatacommunities.org/id/district-council/eden,Environmental Services,1996 Mandatory Renovation Grants,Capital grants,TOP NOTCH CONTRACTORS LTD,TOP003,11/06/2021,195946,6095,FIN PAYMENT GRANTREF 200059
Eden District Council,http://opendatacommunities.org/id/district-council/eden,Information Technology Manager,Information Technology,IT Contracts & Maintenance,MLL TELECOM LTD,MLL001,11/06/2021,193479,3705.75,EDEN TH - MH
Eden District Council,http://opendatacommunities.org/id/district-council/eden,Legal Services Manager,Community Development & Engagement,Grants and contributions,CARLISLE & EDEN CITIZENS ADVICE BUREAU,EDE018,11/06/2021,193711,20050,ANNUAL GRANT FUNDING 2021/22
Eden District Council,http://opendatacommunities.org/id/district-council/eden,Revenue/Benefits Manager,Revenue & Benefits,Contribution by EDC,PENRITH B I D COMPANY LTD,PEN085,11/06/2021,195202,20000,TRANSFER BID LEVY 2021-22
Eden District Council,http://opendatacommunities.org/id/district-council/eden,Financial Services Manager,Financial Services,Professional fees,CUMBRIA COUNTY COUNCIL LGPS,CUM095,11/06/2021,195228,750,PENSION RECHARGES FRS WORK 31.3.21
Eden District Council,http://opendatacommunities.org/id/district-council/eden,Financial Services Manager,Corporate Costs,Balance Sheet entry BS,GREENWICH LEISURE LTD,NCL001,11/06/2021,195822,11113.76,MANAGEMENT FEE FEB21
Eden District Council,http://opendatacommunities.org/id/district-council/eden,Financial Services Manager,Corporate Costs,Balance Sheet entry BS,GREENWICH LEISURE LTD,NCL001,11/06/2021,195823,11113.76,MANAGMENT FEE MAR21
Eden District Council,http://opendatacommunities.org/id/district-council/eden,Chief Executive's,One Eden Programme,Agency Staff,MBSP CONSULTANCY LTD,MBS001,11/06/2021,195824,7200,ONE EDEN MAY21
Eden District Council,http://opendatacommunities.org/id/district-council/eden,Chief Executive's,Chief Executive,Agency Staff,CARLISLE CITY COUNCIL,CAR015,11/06/2021,195827,4000,SHARED CEO MAY21
Eden District Council,http://opendatacommunities.org/id/district-council/eden,Environmental Services,Pest Control,Pest Control,RENTOKIL INITIAL PEST CONTROL,REN009,11/06/2021,194733,1023.69,PEST MISC JUN21
Eden District Council,http://opendatacommunities.org/id/district-council/eden,Environmental Services,Appleby Fair,Street Cleaning Contract,URBASER LIMITED,URB002,11/06/2021,195214,19004.91,CERT M-SC110
Eden District Council,http://opendatacommunities.org/id/district-council/eden,Technical Services Manager,Refuse Collection,Contract refuse collection,URBASER LIMITED,URB002,11/06/2021,195215,75733.44,CERT M-RC110
Eden District Council,http://opendatacommunities.org/id/district-council/eden,Technical Services Manager,Recycling,Em Wks Storage,URBASER LIMITED,URB002,11/06/2021,195222,552.37,CERT M-M&EW110
Eden District Council,http://opendatacommunities.org/id/district-council/eden,Technical Services Manager,Emergency Planning and Works,Grounds Maint Contract additional works,URBASER LIMITED,URB002,11/06/2021,195826,5208.54,FRENCHFIELDS GROUNDS MAIN MAY21
Eden District Council,http://opendatacommunities.org/id/district-council/eden,Legal Services Manager,Elections,Postal Voting - Printing & Stationery,PRINT IMAGE NETWORK LTD,PRI011,11/06/2021,195828,10201.42,EDEN PCC POSTAL VOTES 21
Eden District Council,http://opendatacommunities.org/id/district-council/eden,Information Technology Manager,Information Technology,Government Connect,NOMINET,NOM001,11/06/2021,193474,765.94,dns services q1
Eden District Council,http://opendatacommunities.org/id/district-council/eden,Transformation & Customers Head of,Emergency Planning and Works,Advertising,BARRNON MEDIA LTD,CUM001,11/06/2021,194545,500,COVID AD 15.5.21
Eden District Council,http://opendatacommunities.org/id/district-council/eden,Environmental Services,1996 Mandatory Renovation Grants,Capital grants,DAY CUMMINS LTD,DAY002,11/06/2021,194706,1218,INT PAYMENY GRANT REF 200071
Eden District Council,http://opendatacommunities.org/id/district-council/eden,Legal Services Manager,Elections,Polling Stations - Equipment Costs,ASSOCIATION OF ELECTORAL ADMINISTRATION,ASS003,11/06/2021,194725,1550.4,ONLINE POLLING STATION
Eden District Council,http://opendatacommunities.org/id/district-council/eden,Information Technology Manager,Information Technology,Computer equipment,PROBRAND LIMITED,PRO008,11/06/2021,194726,510.3,poly blackwire
Eden District Council,http://opendatacommunities.org/id/district-council/eden,Planning Policy Manager,Local Plans & Policy,Professional fees,TURLEY ASSOCIATES LTD,TUR018,11/06/2021,195217,909,professional fees to 26.5.21
Eden District Council,http://opendatacommunities.org/id/district-council/eden,Financial Services Manager,Emergency Planning and Works,Grants and contributions,agricultural hotel,40151388,11/06/2021,196109,12000,COVID 19 SMALL BUSINESS GRANT
Eden District Council,http://opendatacommunities.org/id/district-council/eden,Financial Services Manager,Emergency Planning and Works,Grants and contributions,Edenbridge cafe,40126900,11/06/2021,196110,8000,COVID 19 SMALL BUSINESS GRANT
Eden District Council,http://opendatacommunities.org/id/district-council/eden,Financial Services Manager,Emergency Planning and Works,Grants and contributions,Mini Eden,40240141,11/06/2021,196111,2667,COVID 19 SMALL BUSINESS GRANT
Eden District Council,http://opendatacommunities.org/id/district-council/eden,Financial Services Manager,Emergency Planning and Works,Grants and contributions,curios and collectables,40242086,11/06/2021,196112,2667,COVID 19 SMALL BUSINESS GRANT
Eden District Council,http://opendatacommunities.org/id/district-council/eden,Financial Services Manager,Emergency Planning and Works,Grants and contributions,Birds Bistro Enterprises Limited,40252731,11/06/2021,196113,2667,COVID 19 SMALL BUSINESS GRANT
Eden District Council,http://opendatacommunities.org/id/district-council/eden,Financial Services Manager,Emergency Planning and Works,Grants and contributions,THE RATE PAYER,40250322,11/06/2021,196114,8000,COVID 19 SMALL BUSINESS GRANT
Eden District Council,http://opendatacommunities.org/id/district-council/eden,Financial Services Manager,Emergency Planning and Works,Grants and contributions,The Top Cafe,40213668,11/06/2021,196115,8000,COVID 19 SMALL BUSINESS GRANT
Eden District Council,http://opendatacommunities.org/id/district-council/eden,Financial Services Manager,Emergency Planning and Works,Grants and contributions,THE RATE PAYER,40237176,11/06/2021,196116,8000,COVID 19 SMALL BUSINESS GRANT
Eden District Council,http://opendatacommunities.org/id/district-council/eden,Financial Services Manager,Emergency Planning and Works,Grants and contributions,THE RATE PAYER,40247265,11/06/2021,196117,2667,COVID 19 SMALL BUSINESS GRANT
Eden District Council,http://opendatacommunities.org/id/district-council/eden,Financial Services Manager,Emergency Planning and Works,Grants and contributions,THE RATE PAYER,40035721,11/06/2021,196118,2667,COVID 19 SMALL BUSINESS GRANT
Eden District Council,http://opendatacommunities.org/id/district-council/eden,Financial Services Manager,Emergency Planning and Works,Grants and contributions,THE RATE PAYER,40137269,11/06/2021,196119,8000,COVID 19 SMALL BUSINESS GRANT
Eden District Council,http://opendatacommunities.org/id/district-council/eden,Financial Services Manager,Emergency Planning and Works,Grants and contributions,THE RATE PAYER,40150026,11/06/2021,196120,8000,COVID 19 SMALL BUSINESS GRANT
Eden District Council,http://opendatacommunities.org/id/district-council/eden,Financial Services Manager,Emergency Planning and Works,Grants and contributions,THE RATE PAYER,40223092,11/06/2021,196121,8000,COVID 19 SMALL BUSINESS GRANT
Eden District Council,http://opendatacommunities.org/id/district-council/eden,Financial Services Manager,Emergency Planning and Works,Grants and contributions,Deshen Investments Ltd,40251967,11/06/2021,196122,8000,COVID 19 SMALL BUSINESS GRANT
Eden District Council,http://opendatacommunities.org/id/district-council/eden,Financial Services Manager,Emergency Planning and Works,Grants and contributions,Penrith AFC,40200099,11/06/2021,196123,8000,COVID 19 SMALL BUSINESS GRANT
Eden District Council,http://opendatacommunities.org/id/district-council/eden,Financial Services Manager,Emergency Planning and Works,Grants and contributions,Ullswater Navigation & Transit Co,40055404,11/06/2021,196124,8000,COVID 19 SMALL BUSINESS GRANT
Eden District Council,http://opendatacommunities.org/id/district-council/eden,Financial Services Manager,Emergency Planning and Works,Grants and contributions,Ullswater Navigations & Transit Co,40045391,11/06/2021,196125,12000,COVID 19 SMALL BUSINESS GRANT
Eden District Council,http://opendatacommunities.org/id/district-council/eden,Financial Services Manager,Emergency Planning and Works,Grants and contributions,Ullswater Navigation & Transit Co,40033527,11/06/2021,196126,12000,COVID 19 SMALL BUSINESS GRANT
Eden District Council,http://opendatacommunities.org/id/district-council/eden,Financial Services Manager,Emergency Planning and Works,Grants and contributions,Choice Hotels Limited,40135607,11/06/2021,196127,18000,COVID 19 SMALL BUSINESS GRANT
Eden District Council,http://opendatacommunities.org/id/district-council/eden,Financial Services Manager,Emergency Planning and Works,Grants and contributions,lake district ski club,40057196,11/06/2021,196128,8000,COVID 19 SMALL BUSINESS GRANT
Eden District Council,http://opendatacommunities.org/id/district-council/eden,Financial Services Manager,Emergency Planning and Works,Grants and contributions,Happy Hooves Riding Centre,40218922,11/06/2021,196129,8000,COVID 19 SMALL BUSINESS GRANT
Eden District Council,http://opendatacommunities.org/id/district-council/eden,Financial Services Manager,Emergency Planning and Works,Grants and contributions,THE RATE PAYER,40028020,11/06/2021,196130,12000,COVID 19 SMALL BUSINESS GRANT
Eden District Council,http://opendatacommunities.org/id/district-council/eden,Financial Services Manager,Emergency Planning and Works,Grants and contributions,Formways ltd,40248053,11/06/2021,196131,8000,COVID 19 SMALL BUSINESS GRANT
Eden District Council,http://opendatacommunities.org/id/district-council/eden,Financial Services Manager,Emergency Planning and Works,Grants and contributions,Moss bank country lodges,40231086,11/06/2021,196132,8000,COVID 19 SMALL BUSINESS GRANT
Eden District Council,http://opendatacommunities.org/id/district-council/eden,Financial Services Manager,Emergency Planning and Works,Grants and contributions,Rheged Discovery Centre,40204480,11/06/2021,196133,18000,COVID 19 SMALL BUSINESS GRANT
Eden District Council,http://opendatacommunities.org/id/district-council/eden,Financial Services Manager,Emergency Planning and Works,Grants and contributions,THE RATE PAYER,40216254,11/06/2021,196134,2667,COVID 19 SMALL BUSINESS GRANT
Eden District Council,http://opendatacommunities.org/id/district-council/eden,Financial Services Manager,Emergency Planning and Works,Grants and contributions,THE RATE PAYER,40252861,11/06/2021,196135,8000,COVID 19 SMALL BUSINESS GRANT
Eden District Council,http://opendatacommunities.org/id/district-council/eden,Financial Services Manager,Emergency Planning and Works,Grants and contributions,Tebay Sports and Social Club,40158587,11/06/2021,196136,8000,COVID 19 SMALL BUSINESS GRANT
Eden District Council,http://opendatacommunities.org/id/district-council/eden,Financial Services Manager,Emergency Planning and Works,Grants and contributions,Barnardo's,40191805,11/06/2021,196137,2667,COVID 19 SMALL BUSINESS GRANT
Eden District Council,http://opendatacommunities.org/id/district-council/eden,Financial Services Manager,Emergency Planning and Works,Grants and contributions,THE RATE PAYER,40244907,11/06/2021,196138,8000,COVID 19 SMALL BUSINESS GRANT
Eden District Council,http://opendatacommunities.org/id/district-council/eden,Financial Services Manager,Emergency Planning and Works,Grants and contributions,PENRITH MOTORCYCLES LTD,40248688,11/06/2021,196139,2667,COVID 19 SMALL BUSINESS GRANT
Eden District Council,http://opendatacommunities.org/id/district-council/eden,Financial Services Manager,Emergency Planning and Works,Grants and contributions,Scarside Farm,40227407,11/06/2021,196140,8000,COVID 19 SMALL BUSINESS GRANT
Eden District Council,http://opendatacommunities.org/id/district-council/eden,Financial Services Manager,Emergency Planning and Works,Grants and contributions,Magic Bean Restaurant,40243553,11/06/2021,196141,8000,COVID 19 SMALL BUSINESS GRANT
Eden District Council,http://opendatacommunities.org/id/district-council/eden,Financial Services Manager,Emergency Planning and Works,Grants and contributions,THE RATE PAYER,40204718,11/06/2021,196142,8000,COVID 19 SMALL BUSINESS GRANT
Eden District Council,http://opendatacommunities.org/id/district-council/eden,Financial Services Manager,Emergency Planning and Works,Grants and contributions,Wayfarers Independent Hostel,40245993,11/06/2021,196143,8000,COVID 19 SMALL BUSINESS GRANT
Eden District Council,http://opendatacommunities.org/id/district-council/eden,Financial Services Manager,Emergency Planning and Works,Grants and contributions,richchlo ltd,40240288,11/06/2021,196144,12000,COVID 19 SMALL BUSINESS GRANT
Eden District Council,http://opendatacommunities.org/id/district-council/eden,Financial Services Manager,Emergency Planning and Works,Grants and contributions,THE RATE PAYER,40188274,11/06/2021,196145,8000,COVID 19 SMALL BUSINESS GRANT
Eden District Council,http://opendatacommunities.org/id/district-council/eden,Financial Services Manager,Emergency Planning and Works,Grants and contributions,WK Pubs Limited,40250605,11/06/2021,196146,12000,COVID 19 SMALL BUSINESS GRANT
Eden District Council,http://opendatacommunities.org/id/district-council/eden,Financial Services Manager,Emergency Planning and Works,Grants and contributions,Smithy Barn,40184739,11/06/2021,196147,8000,COVID 19 SMALL BUSINESS GRANT
Eden District Council,http://opendatacommunities.org/id/district-council/eden,Financial Services Manager,Emergency Planning and Works,Grants and contributions,Sassy Nix Boutique,40236807,11/06/2021,196148,2667,COVID 19 SMALL BUSINESS GRANT
Eden District Council,http://opendatacommunities.org/id/district-council/eden,Financial Services Manager,Emergency Planning and Works,Grants and contributions,THE RATE PAYER,40249346,11/06/2021,196149,8000,COVID 19 SMALL BUSINESS GRANT
Eden District Council,http://opendatacommunities.org/id/district-council/eden,Financial Services Manager,Emergency Planning and Works,Grants and contributions,THE RATE PAYER,40239295,11/06/2021,196150,2667,COVID 19 SMALL BUSINESS GRANT
Eden District Council,http://opendatacommunities.org/id/district-council/eden,Financial Services Manager,Emergency Planning and Works,Grants and contributions,THE RATE PAYER,40244136,11/06/2021,196151,8000,COVID 19 SMALL BUSINESS GRANT
Eden District Council,http://opendatacommunities.org/id/district-council/eden,Financial Services Manager,Emergency Planning and Works,Grants and contributions,Upper Eden R U F C,40037604,11/06/2021,196152,8000,COVID 19 SMALL BUSINESS GRANT
Eden District Council,http://opendatacommunities.org/id/district-council/eden,Financial Services Manager,Emergency Planning and Works,Grants and contributions,THE RATE PAYER,40046400,11/06/2021,196153,8000,COVID 19 SMALL BUSINESS GRANT
Eden District Council,http://opendatacommunities.org/id/district-council/eden,Financial Services Manager,Emergency Planning and Works,Grants and contributions,Low Flatts,40248541,11/06/2021,196154,8000,COVID 19 SMALL BUSINESS GRANT
Eden District Council,http://opendatacommunities.org/id/district-council/eden,Financial Services Manager,Emergency Planning and Works,Grants and contributions,WEST NATTRASS TEA ROOMS AND GUEST HOUSE,40183941,11/06/2021,196155,8000,COVID 19 SMALL BUSINESS GRANT
Eden District Council,http://opendatacommunities.org/id/district-council/eden,Financial Services Manager,Emergency Planning and Works,Grants and contributions,Brackenslack Limited,40242727,11/06/2021,196156,8000,COVID 19 SMALL BUSINESS GRANT
Eden District Council,http://opendatacommunities.org/id/district-council/eden,Financial Services Manager,Emergency Planning and Works,Grants and contributions,Winton Parish Hall Committee,40039389,11/06/2021,196157,8000,COVID 19 SMALL BUSINESS GRANT
Eden District Council,http://opendatacommunities.org/id/district-council/eden,Financial Services Manager,Emergency Planning and Works,Grants and contributions,Woodstone dining ltd,40233976,11/06/2021,196158,8000,COVID 19 SMALL BUSINESS GRANT
Eden District Council,http://opendatacommunities.org/id/district-council/eden,Technical Services Manager,Arts and Leisure,Other charges for services,TURFCARE SPECIALISTS LIMITED,TUR012,18/06/2021,196015,27354,VERTICAL DRAIN VARIOUS - SAND SPREADING
Eden District Council,http://opendatacommunities.org/id/district-council/eden,Environmental Services,Environmental Services,Subscriptions & levies,CHARTERED INSTITUTE OF ENVIRONMENTAL HEALTH,CIE002,18/06/2021,196016,515,ANNUAL SUB EHCNET 1.4.21-31.3.22
Eden District Council,http://opendatacommunities.org/id/district-council/eden,Technical Services Manager,Parks and Open Spaces,Play areas - maintenance,TECHNIX RUBBER & PLASTICS LTD,TEC008,18/06/2021,196023,4135,safagrass
Eden District Council,http://opendatacommunities.org/id/district-council/eden,Environmental Services,Housing Delivery,Professional fees,LAMBERT SMITH HAMPTON,LAM009,18/06/2021,196039,2950,REVIEW LAND WEST SOCKBRIDGE
Eden District Council,http://opendatacommunities.org/id/district-council/eden,Technical Services Manager,Eden Leisure Centre & Appleby Swimming P,Abnormal maintenance,IAN CANNON LTD,CAN004,18/06/2021,196098,2870,water pipe repairs frenchfield
Eden District Council,http://opendatacommunities.org/id/district-council/eden,Commercial Services Manager,Tourism Promotion,Distribution,NPD NORTH LTD,NPD001,18/06/2021,194528,500,ADVERT PERFECT DAYS 2021
Eden District Council,http://opendatacommunities.org/id/district-council/eden,Technical Services Manager,Administrative Buildings,Gas,GAZPROM ENERGY,GAZ001,18/06/2021,195221,1593.01,various sites
Eden District Council,http://opendatacommunities.org/id/district-council/eden,Commercial Services Manager,Tourism Promotion,Distribution,LIFESTYLE MEDIA GROUP LTD,CAT003,18/06/2021,195224,2003.76,BROCHURES 1.2.21-30.4.21
Eden District Council,http://opendatacommunities.org/id/district-council/eden,Financial Services Manager,Treasury Management,Professional fees,ARLINGCLOSE LTD,ARL002,18/06/2021,195942,1950,ESG & RESPONSIBLE INVESTMENT SERVICE A
Eden District Council,http://opendatacommunities.org/id/district-council/eden,Legal Services Manager,Elections,Polling Stations - Equipment Costs,DYNAMIC JOINERY LTD,DYN004,18/06/2021,195957,9000,DELIVERY / COLLECTION POLLING BOOTHS / P
Eden District Council,http://opendatacommunities.org/id/district-council/eden,Legal Services Manager,Elections,Postal Voting - Printing & Stationery,ROYAL MAIL NW,ROY001,18/06/2021,196019,1078.38,MAY ELECTIONS 2021
Eden District Council,http://opendatacommunities.org/id/district-council/eden,Commercial Services Manager,Community Development & Engagement,Community Fund,LANGWATHBY UNITED AFC,LAN023,18/06/2021,196079,4500,1ST EDC COMMUNITY FUND PAYMENT
Eden District Council,http://opendatacommunities.org/id/district-council/eden,Technical Services Manager,Recycling,Garden Waste Skips,CUMBRIA WASTE RECYCLING LTD,CUM022,18/06/2021,196095,3640,skip drops
Eden District Council,http://opendatacommunities.org/id/district-council/eden,Environmental Services,Community Wardens,Dog Contract O.O.H retainer,URBASER LIMITED,URB002,18/06/2021,195198,970.81,STRAY DOG APR21
Eden District Council,http://opendatacommunities.org/id/district-council/eden,Environmental Services,Community Wardens,Dog Contract O.O.H retainer,URBASER LIMITED,URB002,18/06/2021,195199,970.81,STRAY DOG MAY21
Eden District Council,http://opendatacommunities.org/id/district-council/eden,Technical Services Manager,Cemeteries,Commercial Refuse collection,URBASER LIMITED,URB002,18/06/2021,195951,613.56,refuse bins
Eden District Council,http://opendatacommunities.org/id/district-council/eden,Commercial Services Manager,Economic Development and Promotion,Professional fees,WALTON GOODLAND LTD,WAL008,18/06/2021,195953,3223.5,may 21 rate for suveyor
Eden District Council,http://opendatacommunities.org/id/district-council/eden,Legal Services Manager,Legal Services,Agency Staff,VENN GROUP LIMITED,VEN003,18/06/2021,195966,896.14,TIME SHEET WE 30.05.21
Eden District Council,http://opendatacommunities.org/id/district-council/eden,Technical Services Manager,Administrative Buildings,Rental/Maintenance of Fire Alarm,WESTMORLAND FIRE & SECURITY,WES001,18/06/2021,196085,688.41,maintenance 1.6.21-31.5.22
Eden District Council,http://opendatacommunities.org/id/district-council/eden,Technical Services Manager,Administrative Buildings,Planned Maintenance,TESGL LTD,NOB001,18/06/2021,195220,618,MAINTENANCE TH AND MH
Eden District Council,http://opendatacommunities.org/id/district-council/eden,Technical Services Manager,corporate costs,Balance Sheet entry BS,HEATONS GROUP LTD,LAK004,18/06/2021,195943,620.11,STATIONERY PAPER h&S EQUIP
Eden District Council,http://opendatacommunities.org/id/district-council/eden,Environmental Services,1996 Mandatory Renovation Grants,Capital grants,DOLPHIN MOBILITY YORKSHIRE & CUMBRIA LTD,DOL001,18/06/2021,195945,2570,grant ref 210002   FIN PAYMENT
Eden District Council,http://opendatacommunities.org/id/district-council/eden,Environmental Services,1996 Mandatory Renovation Grants,Capital grants,TOP NOTCH CONTRACTORS LTD,TOP003,18/06/2021,195947,12295.5,FIN PAYMENT GRANT REF 190070
Eden District Council,http://opendatacommunities.org/id/district-council/eden,Environmental Services,1996 Mandatory Renovation Grants,Capital grants,TOP NOTCH CONTRACTORS LTD,TOP003,18/06/2021,195949,1038,FIN PAYMENT GRANT REF
Eden District Council,http://opendatacommunities.org/id/district-council/eden,Commercial Services Manager,Commercial Services,Agency Staff,REDACTED INFORMATION,BAL010,18/06/2021,195950,2393.5,ECO TEAM SUPPORT APR21
Eden District Council,http://opendatacommunities.org/id/district-council/eden,Financial Services Manager,Financial Services,Agency Staff,CIPFA PENNA,CIP013,18/06/2021,195958,10132.5,INTERIM MANAGMENTSEVICES MAY 21 DB
Eden District Council,http://opendatacommunities.org/id/district-council/eden,Corporate Services Director,Director of Corporate Services,Agency Staff,CIPFA PENNA,CIP013,18/06/2021,195959,14080,INTERIM MANAGMENT MAY21 PS
Eden District Council,http://opendatacommunities.org/id/district-council/eden,Financial Services Manager,Emergency Planning and Works,Grants and contributions,THE RATE PAYER,40243485,16/06/2021,196219,2667,COVID 19 SMALL BUSINESS GRANT
Eden District Council,http://opendatacommunities.org/id/district-council/eden,Financial Services Manager,Emergency Planning and Works,Grants and contributions,Eden Animal Rescue,40146911,16/06/2021,196220,2667,COVID 19 SMALL BUSINESS GRANT
Eden District Council,http://opendatacommunities.org/id/district-council/eden,Financial Services Manager,Emergency Planning and Works,Grants and contributions,Beautique,40224835,16/06/2021,196221,8000,COVID 19 SMALL BUSINESS GRANT
Eden District Council,http://opendatacommunities.org/id/district-council/eden,Financial Services Manager,Emergency Planning and Works,Grants and contributions,BlueJam Cumbria Ltd,40240912,16/06/2021,196222,8000,COVID 19 SMALL BUSINESS GRANT
Eden District Council,http://opendatacommunities.org/id/district-council/eden,Financial Services Manager,Emergency Planning and Works,Grants and contributions,Brougham Hall Charitable Trust,40172866,16/06/2021,196223,8000,COVID 19 SMALL BUSINESS GRANT
Eden District Council,http://opendatacommunities.org/id/district-council/eden,Financial Services Manager,Emergency Planning and Works,Grants and contributions,THE RATE PAYER,40222631,16/06/2021,196224,8000,COVID 19 SMALL BUSINESS GRANT
Eden District Council,http://opendatacommunities.org/id/district-council/eden,Financial Services Manager,Emergency Planning and Works,Grants and contributions,27 Bongate,40236913,16/06/2021,196225,8000,COVID 19 SMALL BUSINESS GRANT
Eden District Council,http://opendatacommunities.org/id/district-council/eden,Financial Services Manager,Emergency Planning and Works,Grants and contributions,Kirkoswald Church Institute,40048956,16/06/2021,196226,8000,COVID 19 SMALL BUSINESS GRANT
Eden District Council,http://opendatacommunities.org/id/district-council/eden,Financial Services Manager,Emergency Planning and Works,Grants and contributions,Joiners Arms,40207618,16/06/2021,196227,8000,COVID 19 SMALL BUSINESS GRANT
Eden District Council,http://opendatacommunities.org/id/district-council/eden,Financial Services Manager,Emergency Planning and Works,Grants and contributions,THE RATE PAYER,40252571,16/06/2021,196228,8000,COVID 19 SMALL BUSINESS GRANT
Eden District Council,http://opendatacommunities.org/id/district-council/eden,Financial Services Manager,Emergency Planning and Works,Grants and contributions,Riverbank Cottage,40241694,16/06/2021,196229,8000,COVID 19 SMALL BUSINESS GRANT
Eden District Council,http://opendatacommunities.org/id/district-council/eden,Financial Services Manager,Emergency Planning and Works,Grants and contributions,THE RATE PAYER,40249438,16/06/2021,196230,8000,COVID 19 SMALL BUSINESS GRANT
Eden District Council,http://opendatacommunities.org/id/district-council/eden,Financial Services Manager,Emergency Planning and Works,Grants and contributions,THE RATE PAYER,40253178,16/06/2021,196231,8000,COVID 19 SMALL BUSINESS GRANT
Eden District Council,http://opendatacommunities.org/id/district-council/eden,Financial Services Manager,Emergency Planning and Works,Grants and contributions,Penrith RUFC Limited,40239912,16/06/2021,196232,12000,COVID 19 SMALL BUSINESS GRANT
Eden District Council,http://opendatacommunities.org/id/district-council/eden,Financial Services Manager,Emergency Planning and Works,Grants and contributions,Bolton School Central Services,40235286,16/06/2021,196233,12000,COVID 19 SMALL BUSINESS GRANT
Eden District Council,http://opendatacommunities.org/id/district-council/eden,Financial Services Manager,Emergency Planning and Works,Grants and contributions,Seasons Holidays plc,40248275,16/06/2021,196234,18000,COVID 19 SMALL BUSINESS GRANT
Eden District Council,http://opendatacommunities.org/id/district-council/eden,Financial Services Manager,Emergency Planning and Works,Grants and contributions,Penrith Tile Centre,40248909,18/06/2021,196259,2667,COVID 19 SMALL BUSINESS GRANT
Eden District Council,http://opendatacommunities.org/id/district-council/eden,Financial Services Manager,Emergency Planning and Works,Grants and contributions,Shap Community CIO,40219062,18/06/2021,196260,8000,COVID 19 SMALL BUSINESS GRANT
Eden District Council,http://opendatacommunities.org/id/district-council/eden,Financial Services Manager,Emergency Planning and Works,Grants and contributions,Askham & Dist Community Centre,40033114,18/06/2021,196261,8000,COVID 19 SMALL BUSINESS GRANT
Eden District Council,http://opendatacommunities.org/id/district-council/eden,Financial Services Manager,Emergency Planning and Works,Grants and contributions,Gio gents hair stylist,40217035,18/06/2021,196262,8000,COVID 19 SMALL BUSINESS GRANT
Eden District Council,http://opendatacommunities.org/id/district-council/eden,Financial Services Manager,Emergency Planning and Works,Grants and contributions,Old School House,40235934,18/06/2021,196263,8000,COVID 19 SMALL BUSINESS GRANT
Eden District Council,http://opendatacommunities.org/id/district-council/eden,Financial Services Manager,Emergency Planning and Works,Grants and contributions,Lord Inglewood,40067148,18/06/2021,196264,8000,COVID 19 SMALL BUSINESS GRANT
Eden District Council,http://opendatacommunities.org/id/district-council/eden,Financial Services Manager,Emergency Planning and Works,Grants and contributions,THE RATE PAYER,40154271,18/06/2021,196265,8000,COVID 19 SMALL BUSINESS GRANT
Eden District Council,http://opendatacommunities.org/id/district-council/eden,Financial Services Manager,Emergency Planning and Works,Grants and contributions,THE RATE PAYER,40226763,18/06/2021,196266,8000,COVID 19 SMALL BUSINESS GRANT
Eden District Council,http://opendatacommunities.org/id/district-council/eden,Financial Services Manager,Emergency Planning and Works,Grants and contributions,THE RATE PAYER,40179614,18/06/2021,196267,8000,COVID 19 SMALL BUSINESS GRANT
Eden District Council,http://opendatacommunities.org/id/district-council/eden,Financial Services Manager,Emergency Planning and Works,Grants and contributions,THE RATE PAYER,40179621,18/06/2021,196268,8000,COVID 19 SMALL BUSINESS GRANT
Eden District Council,http://opendatacommunities.org/id/district-council/eden,Financial Services Manager,Emergency Planning and Works,Grants and contributions,THE RATE PAYER,40241700,18/06/2021,196269,8000,COVID 19 SMALL BUSINESS GRANT
Eden District Council,http://opendatacommunities.org/id/district-council/eden,Financial Services Manager,Emergency Planning and Works,Grants and contributions,Rookin House Activity Centre Ltd,40028501,18/06/2021,196270,12000,COVID 19 SMALL BUSINESS GRANT
Eden District Council,http://opendatacommunities.org/id/district-council/eden,Financial Services Manager,Emergency Planning and Works,Grants and contributions,THE RATE PAYER,40225265,18/06/2021,196271,8000,COVID 19 SMALL BUSINESS GRANT
Eden District Council,http://opendatacommunities.org/id/district-council/eden,Financial Services Manager,Emergency Planning and Works,Grants and contributions,Bessy Beck Ltd,40216308,18/06/2021,196272,8000,COVID 19 SMALL BUSINESS GRANT
Eden District Council,http://opendatacommunities.org/id/district-council/eden,Financial Services Manager,Emergency Planning and Works,Grants and contributions,ANGEL LANE CHIPPIE LIMITED,40208833,18/06/2021,196273,8000,COVID 19 SMALL BUSINESS GRANT
Eden District Council,http://opendatacommunities.org/id/district-council/eden,Financial Services Manager,Emergency Planning and Works,Grants and contributions,Glenridding Gallery,40216100,18/06/2021,196274,2667,COVID 19 SMALL BUSINESS GRANT
Eden District Council,http://opendatacommunities.org/id/district-council/eden,Financial Services Manager,Emergency Planning and Works,Grants and contributions,Haweswater Hotel,40217967,18/06/2021,196275,12000,COVID 19 SMALL BUSINESS GRANT
Eden District Council,http://opendatacommunities.org/id/district-council/eden,Financial Services Manager,Emergency Planning and Works,Grants and contributions,Lowther Parish Hall,40029139,18/06/2021,196276,8000,COVID 19 SMALL BUSINESS GRANT
Eden District Council,http://opendatacommunities.org/id/district-council/eden,Financial Services Manager,Emergency Planning and Works,Grants and contributions,Red Barn Gallery,40159641,18/06/2021,196277,2667,COVID 19 SMALL BUSINESS GRANT
Eden District Council,http://opendatacommunities.org/id/district-council/eden,Financial Services Manager,Emergency Planning and Works,Grants and contributions,black bull inn,40253123,18/06/2021,196278,8000,COVID 19 SMALL BUSINESS GRANT
Eden District Council,http://opendatacommunities.org/id/district-council/eden,Financial Services Manager,Emergency Planning and Works,Grants and contributions,Lakeland Boat Hire,40166304,18/06/2021,196279,8000,COVID 19 SMALL BUSINESS GRANT
Eden District Council,http://opendatacommunities.org/id/district-council/eden,Technical Services Manager,Administrative Buildings,Planned Maintenance,CENTRAL POWER SERVICES LTD,CEN002,25/06/2021,196092,532.2,supply/fit new temp gauge
Eden District Council,http://opendatacommunities.org/id/district-council/eden,Commercial Services Manager,Museum,Museum exhibits,THE HEART OF CUMBRIA,HEA025,25/06/2021,196162,500,FRAMING OF WORKS FOR EXHIBITION
Eden District Council,http://opendatacommunities.org/id/district-council/eden,Information Technology Manager,Repairs & Renewals Fund,Equipment � purchase,CCS MEDIA LTD,CCS001,25/06/2021,196174,4989.6,LATITUDE 3520 BTS
Eden District Council,http://opendatacommunities.org/id/district-council/eden,Environmental Services,1996 Mandatory Renovation Grants,Capital grants,KJS ACCESS SOLUTIONS,KJS001,25/06/2021,196240,2588.95,FINAL PAYMENT GRANT REF 190056
Eden District Council,http://opendatacommunities.org/id/district-council/eden,Legal Services Manager,Legal Services,Professional fees,BEVAN BRITTAN LLP,BEV002,25/06/2021,196020,6354.5,PRO CHARGES 29.3.21-22.4.21
Eden District Council,http://opendatacommunities.org/id/district-council/eden,Legal Services Manager,Elections,Hire of premises,GREENWICH LEISURE LTD,NCL001,25/06/2021,196037,663.3,SPORTS HALL HIRE
Eden District Council,http://opendatacommunities.org/id/district-council/eden,Legal Services Manager,Elections,Hire of premises,GREENWICH LEISURE LTD,NCL001,25/06/2021,196038,534.22,SPORTS HALL HIRE
Eden District Council,http://opendatacommunities.org/id/district-council/eden,Legal Services Manager,Elections,Charges to other LA's,CARLISLE CITY COUNCIL,CAR015,25/06/2021,196043,15996.4,PARLIAMENTARY ELECTION 12.12.19 RECHARGE
Eden District Council,http://opendatacommunities.org/id/district-council/eden,Commercial Services Manager,Tourism Promotion,Distribution,LIFESTYLE MEDIA GROUP LTD,CAT003,25/06/2021,196080,674.08,BROCHURES 1.5.21-07.6.21
Eden District Council,http://opendatacommunities.org/id/district-council/eden,Legal Services Manager,Elections,Hire of premises,GREENWICH LEISURE LTD,NCL001,25/06/2021,196091,5298.53,room hire elections 03.5.21-10.5.21
Eden District Council,http://opendatacommunities.org/id/district-council/eden,Revenue/Benefits Manager,Revenue & Benefits,Subscriptions & levies,ACS CONSULTANCY & TRAINING SUPPORT,ACS001,25/06/2021,196161,650,LSCT UPDATE SERVICE 2021
Eden District Council,http://opendatacommunities.org/id/district-council/eden,Commercial Services Manager,Community Development & Engagement,Community Fund,LAZONBY SWIMMING POOL ASSOCIATION,LAZ003,25/06/2021,196235,2550,1ST EDC COMMUNITY FUND PAYMENT
Eden District Council,http://opendatacommunities.org/id/district-council/eden,Commercial Services Manager,Community Development & Engagement,Community Fund,BROUGH PARISH COUNCIL,BRO003,25/06/2021,196247,1530,1ST INSTALLMENT EDC COMMUNITY FUND
Eden District Council,http://opendatacommunities.org/id/district-council/eden,Technical Services Manager,Public Conveniences,Window cleaning,URBASER LIMITED,URB002,25/06/2021,195200,13236.38,CERT 2021/22_BC_01
Eden District Council,http://opendatacommunities.org/id/district-council/eden,Technical Services Manager,Public Conveniences,Window cleaning,URBASER LIMITED,URB002,25/06/2021,195201,13236.38,CERT 2021/22_BC_02
Eden District Council,http://opendatacommunities.org/id/district-council/eden,Environmental Services,Other Environmental Health,Professional fees,UNITED UTILITIES WATER PLC,UNI024,25/06/2021,195825,3342.45,INCOME LABS APR21
Eden District Council,http://opendatacommunities.org/id/district-council/eden,Revenue/Benefits Manager,Revenue & Benefits,Unique payments ****,REDACTED INFORMATION,RIC028,25/06/2021,196024,3823.62,council tax reduction refund
Eden District Council,http://opendatacommunities.org/id/district-council/eden,Legal Services Manager,Elections,Postages,ROYAL MAIL NW,ROY001,25/06/2021,196032,522.37,EDEN POSTAL VOTE
Eden District Council,http://opendatacommunities.org/id/district-council/eden,Revenue/Benefits Manager,Revenue & Benefits,Unique payments ****,REDACTED INFORMATION,SWE002,25/06/2021,196035,1420.38,COUNCIL TAX REDUCTION REFUND
Eden District Council,http://opendatacommunities.org/id/district-council/eden,Financial Services Manager,Financial Services,Internal Audit,TIAA LTD,TIA001,25/06/2021,196097,3250,20/21 civica upgrade implementation
Eden District Council,http://opendatacommunities.org/id/district-council/eden,Technical Services Manager,Footway Lighting,FL  Contract,URBASER LIMITED,URB002,25/06/2021,196104,2736.77,footway lighting APRIL 21
Eden District Council,http://opendatacommunities.org/id/district-council/eden,Technical Services Manager,Footway Lighting,FL  Contract,URBASER LIMITED,URB002,25/06/2021,196105,2736.77,footway lighting may21
Eden District Council,http://opendatacommunities.org/id/district-council/eden,Community Service Assistant Director,Holding Accounts,Postages,ROYAL MAIL NW,ROY001,25/06/2021,196107,1108.29,1ST AND 2ND CLASS MAIL
Eden District Council,http://opendatacommunities.org/id/district-council/eden,Environmental Services,Pest Control,Pest Control,RENTOKIL INITIAL PEST CONTROL,REN009,25/06/2021,196160,1023.69,PESTS MISC 1.7.21-31.7.21
Eden District Council,http://opendatacommunities.org/id/district-council/eden,Technical Services Manager,Closed Church Yards,GM INSPECTIONS & MAINTENANCE,URBASER LIMITED,URB002,25/06/2021,196236,35039.3,CERT M-GM111
Eden District Council,http://opendatacommunities.org/id/district-council/eden,Technical Services Manager,Closed Church Yards,GM INSPECTIONS & MAINTENANCE,URBASER LIMITED,URB002,25/06/2021,196237,35039.3,CERT M-GM110
Eden District Council,http://opendatacommunities.org/id/district-council/eden,Technical Services Manager,Closed Church Yards,GM INSPECTIONS & MAINTENANCE,URBASER LIMITED,URB002,25/06/2021,196239,35039.3,CERT M-GM 109
Eden District Council,http://opendatacommunities.org/id/district-council/eden,Technical Services Manager,Public Conveniences,Water charges � metered,WATER PLUS,UNI008,25/06/2021,196244,892.36,PCS BLUEBELL LANE
Eden District Council,http://opendatacommunities.org/id/district-council/eden,Technical Services Manager,Parks and Open Spaces,GM External Contractors,DINSDALE CONTRACTS LTD,DIN005,25/06/2021,196025,4867.8,SURFACING CASTLE PARK
Eden District Council,http://opendatacommunities.org/id/district-council/eden,Technical Services Manager,Land Management,Building works,BAKER MALLETT LLP,BAK010,25/06/2021,196027,1530,PROFESSIONAL SERVICES  - NR6 
Eden District Council,http://opendatacommunities.org/id/district-council/eden,Technical Services Manager,Land Management,Building works,BAKER MALLETT LLP,BAK010,25/06/2021,196028,1980,PROFESSIONAL SERVICES  - NR5
Eden District Council,http://opendatacommunities.org/id/district-council/eden,Transformation & Customers Head of,Corporate Services,Equipment � purchase,IDEAGEN GAEL,IDE007,25/06/2021,196030,23280,PENTANA LICENCES / RISK MODULES
Eden District Council,http://opendatacommunities.org/id/district-council/eden,Environmental Services,1996 Mandatory Renovation Grants,Capital grants,MALLY DOUGLAS PAVING & CVILS CONTRACTORS LTD,MAL016,25/06/2021,196082,2280,FINAL PAYMENT GRANT REF 190077
Eden District Council,http://opendatacommunities.org/id/district-council/eden,Technical Services Manager,Eden Leisure Centre & Appleby Swimming P,Abnormal maintenance,IAN CANNON LTD,CAN004,25/06/2021,196094,2460,water pipe repairs frenchfield
Eden District Council,http://opendatacommunities.org/id/district-council/eden,Financial Services Manager,Emergency Planning and Works,Grants and contributions,PEOPLE AND PLACES INSIGHT LIMITED,PEO001,16/06/2021,196317,1500,RHSS BASELINE - FASTER PAYMENT 16/06/2021
Eden District Council,http://opendatacommunities.org/id/district-council/eden,Financial Services Manager,Emergency Planning and Works,Grants and contributions,THE RATE PAYER,40170587,23/06/2021,196361,8000,COVID 19 SMALL BUSINESS GRANT
Eden District Council,http://opendatacommunities.org/id/district-council/eden,Financial Services Manager,Emergency Planning and Works,Grants and contributions,Save the Children Fund,40161880,23/06/2021,196362,2667,COVID 19 SMALL BUSINESS GRANT
Eden District Council,http://opendatacommunities.org/id/district-council/eden,Financial Services Manager,Emergency Planning and Works,Grants and contributions,ARTLEGARTH COUNTRY LODGE BREAKS LTD,40209157,23/06/2021,196363,8000,COVID 19 SMALL BUSINESS GRANT
Eden District Council,http://opendatacommunities.org/id/district-council/eden,Financial Services Manager,Emergency Planning and Works,Grants and contributions,BARROWGARTH GUEST HOUSE,40227728,23/06/2021,196364,8000,COVID 19 SMALL BUSINESS GRANT
Eden District Council,http://opendatacommunities.org/id/district-council/eden,Financial Services Manager,Emergency Planning and Works,Grants and contributions,THE RATE PAYER,40249513,23/06/2021,196365,8000,COVID 19 SMALL BUSINESS GRANT
Eden District Council,http://opendatacommunities.org/id/district-council/eden,Financial Services Manager,Emergency Planning and Works,Grants and contributions,THE RATE PAYER,40152596,23/06/2021,196366,8000,COVID 19 SMALL BUSINESS GRANT
Eden District Council,http://opendatacommunities.org/id/district-council/eden,Financial Services Manager,Emergency Planning and Works,Grants and contributions,astland assets limited,40158778,23/06/2021,196367,8000,COVID 19 SMALL BUSINESS GRANT
Eden District Council,http://opendatacommunities.org/id/district-council/eden,Financial Services Manager,Emergency Planning and Works,Grants and contributions,THE RATE PAYER,40032364,23/06/2021,196368,8000,COVID 19 SMALL BUSINESS GRANT
Eden District Council,http://opendatacommunities.org/id/district-council/eden,Financial Services Manager,Emergency Planning and Works,Grants and contributions,THE RATE PAYER,40127651,23/06/2021,196369,8000,COVID 19 SMALL BUSINESS GRANT
Eden District Council,http://opendatacommunities.org/id/district-council/eden,Financial Services Manager,Emergency Planning and Works,Advertising,BARRNON MEDIA LTD,CUM001,02/07/2021,196305,500,COVID AD 19.6.21
Eden District Council,http://opendatacommunities.org/id/district-council/eden,Financial Services Manager,Corporate Costs,Professional fees,PROACTIS LTD,PRO017,02/07/2021,196384,2200,SUBSCRIPTION PROCONTRACT 1.8.21-31.7.22
Eden District Council,http://opendatacommunities.org/id/district-council/eden,Legal Services Manager,Licensing,Development,PETER FULTON,FUL001,02/07/2021,196398,574.9,BIIAB LEVEL 2 AWARD PERSONAL LICENCE
Eden District Council,http://opendatacommunities.org/id/district-council/eden,Environmental Services,1996 Mandatory Renovation Grants,Capital grants,TOP NOTCH CONTRACTORS LTD,TOP003,02/07/2021,196081,3184.29,INT PAYMENT GRANT REF 200066
Eden District Council,http://opendatacommunities.org/id/district-council/eden,Technical Services Manager,Parks and Open Spaces,Play areas - maintenance,NORTH WEST ARBORICULTURAL SERVICES LTD,NOR066,02/07/2021,196088,5686,castletown play area
Eden District Council,http://opendatacommunities.org/id/district-council/eden,Environmental Services,1996 Mandatory Renovation Grants,Capital grants,PPM LTD,PPM001,02/07/2021,196245,4494.5,grant ref 200073 FINAL PAYMENT
Eden District Council,http://opendatacommunities.org/id/district-council/eden,Human Resources Manager,Central Expenses,Relocation expenses,ANDREW CLEMENT,CLE015,02/07/2021,196248,1950,refund expenses
Eden District Council,http://opendatacommunities.org/id/district-council/eden,Technical Services Manager,Administrative Buildings,Water charges � metered,WATER PLUS,UNI008,02/07/2021,196296,1436,TOWN HALL AND ANNEXE
Eden District Council,http://opendatacommunities.org/id/district-council/eden,Technical Services Manager,Administrative Buildings,Gas,GAZPROM ENERGY,GAZ001,02/07/2021,196301,624.57,TOWNHALL
Eden District Council,http://opendatacommunities.org/id/district-council/eden,Technical Services Manager,Footway Lighting,Electricity,NPOWER LTD,NPO001,02/07/2021,196306,3266.4,STREET LIGHTING
Eden District Council,http://opendatacommunities.org/id/district-council/eden,Technical Services Manager,Footway Lighting,Electricity,NPOWER LTD,NPO001,02/07/2021,196307,3375.28,STREET LIGHTING
Eden District Council,http://opendatacommunities.org/id/district-council/eden,Technical Services Manager,Community Development & Engagement,Grants and contributions,CUMBRIA ASSOCIATION OF LOCAL COUNCILS,CUM039,02/07/2021,196309,500,ADDITIONAL CALC GRANT 2021/22
Eden District Council,http://opendatacommunities.org/id/district-council/eden,Technical Services Manager,Recycling,Recycling - Garden Waste,CUMBRIA WASTE RECYCLING LTD,CUM022,02/07/2021,196311,35483.81,CERT GW-2-21/22
Eden District Council,http://opendatacommunities.org/id/district-council/eden,Technical Services Manager,Recycling,Recycling - Garden Waste,CUMBRIA WASTE RECYCLING LTD,CUM022,02/07/2021,196312,34786.67,CERT GW-1-21/22
Eden District Council,http://opendatacommunities.org/id/district-council/eden,Technical Services Manager,Recycling,Recycling - Garden Waste,CUMBRIA WASTE RECYCLING LTD,CUM022,02/07/2021,196313,697.14,CERT GW-1-21/22
Eden District Council,http://opendatacommunities.org/id/district-council/eden,Technical Services Manager,Administrative Buildings,Water charges � metered,WATER PLUS,UNI008,02/07/2021,196380,1202.76,TH AND ANNEXE
Eden District Council,http://opendatacommunities.org/id/district-council/eden,Technical Services Manager,Footway Lighting,FL  Contract,URBASER LIMITED,URB002,02/07/2021,196383,2736.77,FOOTWAY LIGHTING JUNE 21
Eden District Council,http://opendatacommunities.org/id/district-council/eden,Community Service Assistant Director,Holding Accounts,Postages,ROYAL MAIL NW,ROY001,02/07/2021,196385,1617.26,1ST AND 2ND CLASS MAIL
Eden District Council,http://opendatacommunities.org/id/district-council/eden,Technical Services Manager,Refuse Collection,Contract refuse collection,URBASER LIMITED,URB002,02/07/2021,196386,75733.44,CERT M-RC111
Eden District Council,http://opendatacommunities.org/id/district-council/eden,Environmental Services,Appleby Fair,Street Cleaning Contract,URBASER LIMITED,URB002,02/07/2021,196388,19004.92,CERT M-SC111
Eden District Council,http://opendatacommunities.org/id/district-council/eden,Technical Services Manager,Recycling,Em Wks Storage,URBASER LIMITED,URB002,02/07/2021,196389,552.37,CERT M-m&EW 111/2021
Eden District Council,http://opendatacommunities.org/id/district-council/eden,Technical Services Manager,Administrative Buildings,Water charges � metered,WATER PLUS,UNI008,02/07/2021,196391,-1436,CREDIT RE INV 06601915
Eden District Council,http://opendatacommunities.org/id/district-council/eden,Commercial Services Manager,Community Development & Engagement,Community Fund,KIRKOSWALD COMMUNITY SHOP LTD,KIR052,25/06/2021,196432,10000,KIRKOSWALD VILLAGE SHOP - COMMUNITY FUND GRANT 100%
Eden District Council,http://opendatacommunities.org/id/district-council/eden,Financial Services Manager,Corporate Costs,Bank charges,Barclays Merchant services,BMS001,10/06/2021,216179,1939.98,Merchant Services Charges
Eden District Council,http://opendatacommunities.org/id/district-council/eden,Financial Services Manager,Corporate Costs,Bank charges,Barclays Merchant services,BMS001,29/06/2021,216803,2603.43,Merchant Services Charges
